[Event "Titled Tuesday Blitz June 6 Early 2023"]
[White "Galchenko, Matvey"]
[Black "Papasimakopoulos, Alexandros"]
[WhiteFideId "24175480"]
[BlackFideId "4244125"]
[WhiteElo "2423"]
[BlackElo "2359"]
[Result "0-1"]
[Round "8"]
[TimeControl "180+2"]
[Date "2023.06.06"]
[WhiteClock "0:00:14"]
[BlackClock "0:00:09"]
[Board "23"]

1. e4 {[%clk 0:02:55]}  e6 {[%clk 0:03:00]} 2. d4 {[%clk 0:02:53]}  d5 {[%clk 0:03:00]} 3. e5 {[%clk 0:02:53]}  Bd7 {[%clk 0:02:59]} 4. Nf3 {[%clk 0:02:51]}  a6 {[%clk 0:02:59]} 5. b3 {[%clk 0:02:40]}  c5 {[%clk 0:02:53]} 6. c3 {[%clk 0:02:19]}  Qb6 {[%clk 0:02:48]} 7. Bd3 {[%clk 0:02:05]}  cxd4 {[%clk 0:02:48]} 8. cxd4 {[%clk 0:02:05]}  Bb5 {[%clk 0:02:48]} 9. O-O {[%clk 0:02:04]}  Nc6 {[%clk 0:02:42]} 10. Nc3 {[%clk 0:02:01]}  Bxd3 {[%clk 0:02:41]} 11. Qxd3 {[%clk 0:02:02]}  Nb4 {[%clk 0:02:33]} 12. Qe2 {[%clk 0:01:57]}  Ne7 {[%clk 0:02:32]} 13. Na4 {[%clk 0:01:56]}  Qb5 {[%clk 0:02:30]} 14. Qxb5+ {[%clk 0:01:49]}  axb5 {[%clk 0:02:31]} 15. Nc3 {[%clk 0:01:50]}  Nc2 {[%clk 0:02:30]} 16. Rb1 {[%clk 0:01:50]}  Nc6 {[%clk 0:02:18]} 17. a4 {[%clk 0:01:38]}  N2xd4 {[%clk 0:02:06]} 18. Nxd4 {[%clk 0:01:37]}  Nxd4 {[%clk 0:02:07]} 19. Be3 {[%clk 0:01:38]}  b4 {[%clk 0:02:02]} 20. Bxd4 {[%clk 0:01:36]}  bxc3 {[%clk 0:02:02]} 21. Bxc3 {[%clk 0:01:37]}  Kd7 {[%clk 0:02:01]} 22. Bd4 {[%clk 0:01:31]}  Bb4 {[%clk 0:01:56]} 23. Rfc1 {[%clk 0:01:29]}  Rhc8 {[%clk 0:01:55]} 24. Kf1 {[%clk 0:01:28]}  Ba3 {[%clk 0:01:55]} 25. Rxc8 {[%clk 0:01:23]}  Rxc8 {[%clk 0:01:56]} 26. Ke2 {[%clk 0:01:24]}  Rc2+ {[%clk 0:01:03]} 27. Kd3 {[%clk 0:01:22]}  Ra2 {[%clk 0:01:03]} 28. Ra1 {[%clk 0:01:13]}  Rxa1 {[%clk 0:01:02]} 29. Bxa1 {[%clk 0:01:14]}  Kc6 {[%clk 0:01:01]} 30. Bd4 {[%clk 0:01:09]}  Bb4 {[%clk 0:00:58]} 31. g4 {[%clk 0:01:05]}  Bc5 {[%clk 0:00:44]} 32. Kc3 {[%clk 0:00:58]}  Ba3 {[%clk 0:00:34]} 33. b4 {[%clk 0:00:54]}  b6 {[%clk 0:00:24]} 34. Be3 {[%clk 0:00:52]}  d4+ {[%clk 0:00:13]} 35. Bxd4 {[%clk 0:00:53]}  Bc1 {[%clk 0:00:13]} 36. Kc4 {[%clk 0:00:37]}  Bf4 {[%clk 0:00:11]} 37. h3 {[%clk 0:00:37]}  g6 {[%clk 0:00:09]} 38. a5 {[%clk 0:00:35]}  bxa5 {[%clk 0:00:09]} 39. bxa5 {[%clk 0:00:36]}  Bd2 {[%clk 0:00:06]} 40. a6 {[%clk 0:00:36]}  Ba5 {[%clk 0:00:04]} 41. Kd3 {[%clk 0:00:26]}  Bc7 {[%clk 0:00:03]} 42. Ke4 {[%clk 0:00:26]}  Ba5 {[%clk 0:00:04]} 43. Kf4 {[%clk 0:00:25]}  Bd8 {[%clk 0:00:03]} 44. Ke4 {[%clk 0:00:18]}  Be7 {[%clk 0:00:03]} 45. Kd3 {[%clk 0:00:15]}  Bd8 {[%clk 0:00:04]} 46. Kc4 {[%clk 0:00:16]}  Bc7 {[%clk 0:00:04]} 47. a7 {[%clk 0:00:08]}  Kb7 {[%clk 0:00:05]} 48. Kb5 {[%clk 0:00:08]}  Bd8 {[%clk 0:00:03]} 49. Bc5 {[%clk 0:00:08]}  Bg5 {[%clk 0:00:01]} 50. Be3 {[%clk 0:00:05]}  Be7 {[%clk 0:00:01]} 51. Bc5 {[%clk 0:00:05]}  Bd8 {[%clk 0:00:02]} 52. f4 {[%clk 0:00:04]}  Bh4 {[%clk 0:00:02]} 53. Bd4 {[%clk 0:00:05]}  Bg3 {[%clk 0:00:02]} 54. Bf2 {[%clk 0:00:05]}  Bxf2 {[%clk 0:00:02]} 55. f5 {[%clk 0:00:06]}  gxf5 {[%clk 0:00:02]} 56. gxf5 {[%clk 0:00:06]}  exf5 {[%clk 0:00:03]} 57. Kc4 {[%clk 0:00:06]}  Bxa7 {[%clk 0:00:04]} 58. Kd5 {[%clk 0:00:07]}  Kc7 {[%clk 0:00:05]} 59. e6 {[%clk 0:00:07]}  f6 {[%clk 0:00:05]} 60. Kc4 {[%clk 0:00:06]}  Kd6 {[%clk 0:00:05]} 61. Kd3 {[%clk 0:00:07]}  Kxe6 {[%clk 0:00:06]} 62. Ke2 {[%clk 0:00:08]}  f4 {[%clk 0:00:06]} 63. Kf3 {[%clk 0:00:09]}  Kf5 {[%clk 0:00:07]} 64. h4 {[%clk 0:00:10]}  Bb8 {[%clk 0:00:06]} 65. h5 {[%clk 0:00:11]}  Kg5 {[%clk 0:00:07]} 66. h6 {[%clk 0:00:12]}  Kxh6 {[%clk 0:00:07]} 67. Kg4 {[%clk 0:00:12]}  Kg6 {[%clk 0:00:08]} 68. Kh3 {[%clk 0:00:13]}  Kg5 {[%clk 0:00:08]} 69. Kg2 {[%clk 0:00:14]}  Kg4 {[%clk 0:00:09]} 0-1


[Site "https://www.chess.com"]

[Event "Titled Tuesday Blitz June 6 Early 2023"]
[White "Souleidis, Georgios"]
[Black "demon64fields"]
[WhiteFideId "4206827"]
[WhiteElo "2401"]
[BlackElo "2845"]
[Result "1-0"]
[Round "8"]
[TimeControl "180+2"]
[Date "2023.06.06"]
[WhiteClock "0:00:57"]
[BlackClock "0:01:55"]
[Board "27"]

1. e4 {[%clk 0:03:00]}  e6 {[%clk 0:02:59]} 2. d4 {[%clk 0:03:00]}  d5 {[%clk 0:02:59]} 3. Nc3 {[%clk 0:03:01]}  Bb4 {[%clk 0:02:59]} 4. Ne2 {[%clk 0:03:00]}  dxe4 {[%clk 0:02:58]} 5. a3 {[%clk 0:03:01]}  Be7 {[%clk 0:02:58]} 6. Nxe4 {[%clk 0:03:00]}  Nd7 {[%clk 0:02:59]} 7. N2g3 {[%clk 0:02:58]}  Ngf6 {[%clk 0:02:59]} 8. Bd3 {[%clk 0:02:59]}  c5 {[%clk 0:02:57]} 9. dxc5 {[%clk 0:02:56]}  Nxc5 {[%clk 0:02:56]} 10. Nxc5 {[%clk 0:02:56]}  Bxc5 {[%clk 0:02:57]} 11. Bg5 {[%clk 0:02:49]}  h6 {[%clk 0:02:54]} 12. Bxf6 {[%clk 0:02:47]}  Qxf6 {[%clk 0:02:55]} 13. Bb5+ {[%clk 0:02:44]}  Kf8 {[%clk 0:02:54]} 14. Ne4 {[%clk 0:02:26]}  Qe7 {[%clk 0:02:39]} 15. Nxc5 {[%clk 0:02:26]}  a6 {[%clk 0:02:39]} 16. Be2 {[%clk 0:02:23]}  b6 {[%clk 0:02:34]} 17. Bf3 {[%clk 0:02:08]}  Ra7 {[%clk 0:02:29]} 18. Nb3 {[%clk 0:02:02]}  Rd7 {[%clk 0:02:28]} 19. Qe2 {[%clk 0:02:02]}  a5 {[%clk 0:02:25]} 20. Rd1 {[%clk 0:02:00]}  a4 {[%clk 0:02:25]} 21. Nd4 {[%clk 0:01:57]}  e5 {[%clk 0:02:21]} 22. Nc6 {[%clk 0:01:46]}  Rxd1+ {[%clk 0:02:16]} 23. Qxd1 {[%clk 0:01:47]}  Qc7 {[%clk 0:02:16]} 24. O-O {[%clk 0:01:36]}  f5 {[%clk 0:02:14]} 25. Qd5 {[%clk 0:01:04]}  e4 {[%clk 0:02:08]} 26. Bh5 {[%clk 0:01:04]}  Bb7 {[%clk 0:02:01]} 27. Qxf5+ {[%clk 0:01:03]}  Kg8 {[%clk 0:01:57]} 28. Qe6+ {[%clk 0:00:57]}  Kf8 {[%clk 0:01:55]} 29. Qe8# {[%clk 0:00:57]} 1-0


[Site "https://www.chess.com"]

[Event "Titled Tuesday Blitz June 6 Early 2023"]
[White "Harutjunyan, Gevorg"]
[Black "Sadykov, Ramil"]
[WhiteFideId "13300873"]
[BlackFideId "24113590"]
[WhiteElo "2474"]
[BlackElo "2245"]
[Result "1-0"]
[Round "8"]
[TimeControl "180+2"]
[Date "2023.06.06"]
[WhiteClock "0:00:11"]
[BlackClock "0:00:03"]
[Board "28"]

1. e4 {[%clk 0:03:00]}  e5 {[%clk 0:02:59]} 2. Nf3 {[%clk 0:03:00]}  Nf6 {[%clk 0:02:59]} 3. Nxe5 {[%clk 0:02:54]}  Nxe4 {[%clk 0:02:59]} 4. Qe2 {[%clk 0:02:53]}  Qe7 {[%clk 0:03:00]} 5. d4 {[%clk 0:02:47]}  d6 {[%clk 0:03:00]} 6. Nf3 {[%clk 0:02:47]}  d5 {[%clk 0:02:49]} 7. Nc3 {[%clk 0:02:37]}  Nxc3 {[%clk 0:02:46]} 8. bxc3 {[%clk 0:02:38]}  Qxe2+ {[%clk 0:02:46]} 9. Bxe2 {[%clk 0:02:38]}  Bf5 {[%clk 0:02:47]} 10. Bd3 {[%clk 0:02:36]}  Bxd3 {[%clk 0:02:45]} 11. cxd3 {[%clk 0:02:37]}  Bd6 {[%clk 0:02:40]} 12. Rb1 {[%clk 0:02:21]}  b6 {[%clk 0:02:39]} 13. O-O {[%clk 0:02:08]}  O-O {[%clk 0:02:35]} 14. a4 {[%clk 0:01:59]}  Nd7 {[%clk 0:02:30]} 15. Be3 {[%clk 0:01:56]}  f6 {[%clk 0:02:25]} 16. Rfc1 {[%clk 0:01:56]}  Rfc8 {[%clk 0:02:14]} 17. c4 {[%clk 0:01:51]}  c6 {[%clk 0:02:14]} 18. cxd5 {[%clk 0:01:31]}  cxd5 {[%clk 0:02:14]} 19. Rb5 {[%clk 0:01:28]}  Rxc1+ {[%clk 0:02:07]} 20. Bxc1 {[%clk 0:01:29]}  Rc8 {[%clk 0:02:05]} 21. Bd2 {[%clk 0:01:25]}  Kf7 {[%clk 0:01:57]} 22. Rxd5 {[%clk 0:01:24]}  Ke6 {[%clk 0:01:57]} 23. Rh5 {[%clk 0:01:21]}  h6 {[%clk 0:01:56]} 24. a5 {[%clk 0:01:14]}  f5 {[%clk 0:01:47]} 25. d5+ {[%clk 0:00:48]}  Kf6 {[%clk 0:01:45]} 26. Be3 {[%clk 0:00:45]}  bxa5 {[%clk 0:01:12]} 27. Rh4 {[%clk 0:00:29]}  Bb4 {[%clk 0:00:45]} 28. g4 {[%clk 0:00:25]}  f4 {[%clk 0:00:32]} 29. Bxf4 {[%clk 0:00:22]}  g5 {[%clk 0:00:32]} 30. Rxh6+ {[%clk 0:00:22]}  Kg7 {[%clk 0:00:30]} 31. Bxg5 {[%clk 0:00:22]}  Rc3 {[%clk 0:00:20]} 32. Ra6 {[%clk 0:00:20]}  Rxd3 {[%clk 0:00:19]} 33. Rxa7 {[%clk 0:00:20]}  Rxd5 {[%clk 0:00:16]} 34. h4 {[%clk 0:00:18]}  Kg8 {[%clk 0:00:11]} 35. h5 {[%clk 0:00:16]}  Rd3 {[%clk 0:00:10]} 36. Be3 {[%clk 0:00:15]}  Nf6 {[%clk 0:00:04]} 37. Ne5 {[%clk 0:00:12]}  Rd5 {[%clk 0:00:03]} 38. f4 {[%clk 0:00:11]}  Bc5 {[%clk 0:00:01]} 39. Bxc5 {[%clk 0:00:11]}  Rxc5 {[%clk 0:00:02]} 40. h6 {[%clk 0:00:11]}  Rxe5 {[%clk 0:00:03]} 41. fxe5 {[%clk 0:00:11]}  Nxg4 {[%clk 0:00:03]} 42. Rg7+ {[%clk 0:00:10]}  Kh8 {[%clk 0:00:03]} 43. Rxg4 {[%clk 0:00:11]} 1-0


[Site "https://www.chess.com"]

[Event "Titled Tuesday Blitz June 6 Early 2023"]
[White "Agibileg, Uurtsaikh"]
[Black "Yeletsky, Ivan"]
[WhiteFideId "4901606"]
[BlackFideId "24180327"]
[WhiteElo "2353"]
[BlackElo "2380"]
[Result "0-1"]
[Round "8"]
[TimeControl "180+2"]
[Date "2023.06.06"]
[WhiteClock "0:00:21"]
[BlackClock "0:01:02"]
[Board "29"]

1. d4 {[%clk 0:03:00]}  Nf6 {[%clk 0:02:57]} 2. c4 {[%clk 0:03:00]}  Nc6 {[%clk 0:02:58]} 3. Nf3 {[%clk 0:02:57]}  e6 {[%clk 0:02:58]} 4. Nc3 {[%clk 0:02:56]}  d5 {[%clk 0:02:57]} 5. cxd5 {[%clk 0:02:55]}  exd5 {[%clk 0:02:57]} 6. Bg5 {[%clk 0:02:54]}  Be7 {[%clk 0:02:56]} 7. e3 {[%clk 0:02:54]}  O-O {[%clk 0:02:56]} 8. Bd3 {[%clk 0:02:54]}  h6 {[%clk 0:02:53]} 9. Bh4 {[%clk 0:02:52]}  Nb4 {[%clk 0:02:47]} 10. Bb1 {[%clk 0:02:50]}  c6 {[%clk 0:02:47]} 11. O-O {[%clk 0:02:50]}  a5 {[%clk 0:02:47]} 12. a3 {[%clk 0:02:46]}  Na6 {[%clk 0:02:47]} 13. Ne5 {[%clk 0:02:44]}  Nc7 {[%clk 0:02:47]} 14. Qc2 {[%clk 0:02:44]}  Re8 {[%clk 0:02:45]} 15. Bxf6 {[%clk 0:02:30]}  Bxf6 {[%clk 0:02:46]} 16. Qh7+ {[%clk 0:02:30]}  Kf8 {[%clk 0:02:46]} 17. f4 {[%clk 0:02:31]}  Ke7 {[%clk 0:02:47]} 18. Nxf7 {[%clk 0:02:11]}  Kxf7 {[%clk 0:02:45]} 19. Bg6+ {[%clk 0:02:11]}  Ke7 {[%clk 0:02:46]} 20. Bxe8 {[%clk 0:02:11]}  Qxe8 {[%clk 0:02:31]} 21. e4 {[%clk 0:02:10]}  dxe4 {[%clk 0:02:26]} 22. Rae1 {[%clk 0:02:07]}  Qf8 {[%clk 0:01:52]} 23. Nxe4 {[%clk 0:02:02]}  Bxd4+ {[%clk 0:01:37]} 24. Kh1 {[%clk 0:02:01]}  Nd5 {[%clk 0:01:38]} 25. Qg6 {[%clk 0:01:10]}  Kd8 {[%clk 0:01:32]} 26. Nd6 {[%clk 0:01:10]}  Kc7 {[%clk 0:01:31]} 27. Ne8+ {[%clk 0:01:01]}  Kb6 {[%clk 0:01:30]} 28. Nxg7 {[%clk 0:00:48]}  Qxg7 {[%clk 0:01:29]} 29. Qd3 {[%clk 0:00:46]}  Bd7 {[%clk 0:01:19]} 30. f5 {[%clk 0:00:44]}  Rg8 {[%clk 0:01:19]} 31. Re2 {[%clk 0:00:39]}  Bf6 {[%clk 0:01:15]} 32. b4 {[%clk 0:00:30]}  axb4 {[%clk 0:01:12]} 33. axb4 {[%clk 0:00:29]}  Qg4 {[%clk 0:01:12]} 34. b5 {[%clk 0:00:24]}  Re8 {[%clk 0:01:03]} 35. Rxe8 {[%clk 0:00:22]}  Bxe8 {[%clk 0:01:03]} 36. bxc6 {[%clk 0:00:23]}  Bxc6 {[%clk 0:01:03]} 37. h4 {[%clk 0:00:21]}  Qxh4+ {[%clk 0:01:02]} 0-1


[Site "https://www.chess.com"]

[Event "Titled Tuesday Blitz June 6 Early 2023"]
[White "Pham, Le Thao Nguyen"]
[Black "Ilamparthi A R"]
[WhiteFideId "12401226"]
[BlackFideId "45015775"]
[WhiteElo "2286"]
[BlackElo "2348"]
[Result "0-1"]
[Round "8"]
[TimeControl "180+2"]
[Date "2023.06.06"]
[WhiteClock "0:00:01"]
[BlackClock "0:00:27"]
[Board "32"]

1. d4 {[%clk 0:03:00]}  Nf6 {[%clk 0:02:58]} 2. Nf3 {[%clk 0:02:57]}  g6 {[%clk 0:02:58]} 3. c4 {[%clk 0:02:56]}  Bg7 {[%clk 0:02:58]} 4. Nc3 {[%clk 0:02:55]}  O-O {[%clk 0:02:59]} 5. e4 {[%clk 0:02:53]}  d6 {[%clk 0:02:59]} 6. h3 {[%clk 0:02:52]}  Nbd7 {[%clk 0:02:56]} 7. Be3 {[%clk 0:02:51]}  e5 {[%clk 0:02:56]} 8. Bd3 {[%clk 0:02:35]}  exd4 {[%clk 0:02:48]} 9. Bxd4 {[%clk 0:02:33]}  c6 {[%clk 0:02:31]} 10. O-O {[%clk 0:02:31]}  Qe7 {[%clk 0:02:30]} 11. Re1 {[%clk 0:02:28]}  Ne5 {[%clk 0:02:30]} 12. Bf1 {[%clk 0:02:00]}  Nh5 {[%clk 0:02:26]} 13. Nxe5 {[%clk 0:01:30]}  dxe5 {[%clk 0:02:25]} 14. Be3 {[%clk 0:01:31]}  Nf4 {[%clk 0:02:20]} 15. c5 {[%clk 0:01:26]}  Rd8 {[%clk 0:02:17]} 16. Qc2 {[%clk 0:01:17]}  Ne6 {[%clk 0:02:17]} 17. b4 {[%clk 0:01:11]}  Nd4 {[%clk 0:02:12]} 18. Qb2 {[%clk 0:01:11]}  Be6 {[%clk 0:02:11]} 19. Rac1 {[%clk 0:00:52]}  Rd7 {[%clk 0:02:04]} 20. Qa3 {[%clk 0:00:31]}  a6 {[%clk 0:01:40]} 21. b5 {[%clk 0:00:20]}  cxb5 {[%clk 0:01:30]} 22. Bxb5 {[%clk 0:00:19]}  Rdd8 {[%clk 0:01:24]} 23. Bf1 {[%clk 0:00:17]}  Rac8 {[%clk 0:01:13]} 24. Na4 {[%clk 0:00:17]}  Rc6 {[%clk 0:01:07]} 25. Qb2 {[%clk 0:00:15]}  f5 {[%clk 0:01:03]} 26. exf5 {[%clk 0:00:14]}  gxf5 {[%clk 0:01:03]} 27. Bc4 {[%clk 0:00:10]}  Bxc4 {[%clk 0:00:56]} 28. Rxc4 {[%clk 0:00:11]}  b5 {[%clk 0:00:55]} 29. Rxd4 {[%clk 0:00:05]}  exd4 {[%clk 0:00:55]} 30. Bd2 {[%clk 0:00:05]}  Qf7 {[%clk 0:00:44]} 31. Nb6 {[%clk 0:00:04]}  Rxc5 {[%clk 0:00:39]} 32. Bg5 {[%clk 0:00:05]}  Re8 {[%clk 0:00:38]} 33. Qb4 {[%clk 0:00:02]}  Rxe1+ {[%clk 0:00:34]} 34. Qxe1 {[%clk 0:00:03]}  Re5 {[%clk 0:00:27]} 35. Qc1 {[%clk 0:00:02]}  Qe6 {[%clk 0:00:26]} 36. Qc7 {[%clk 0:00:02]}  Re1+ {[%clk 0:00:26]} 37. Kh2 {[%clk 0:00:01]}  Be5+ {[%clk 0:00:27]} 0-1


[Site "https://www.chess.com"]

[Event "Titled Tuesday Blitz June 6 Early 2023"]
[White "Redzisz, Michal"]
[Black "Tejedor Fuente, Enrique"]
[WhiteFideId "21816107"]
[BlackFideId "2299100"]
[WhiteElo "2175"]
[BlackElo "2496"]
[Result "1-0"]
[Round "8"]
[TimeControl "180+2"]
[Date "2023.06.06"]
[WhiteClock "0:00:07"]
[BlackClock "0:00:09"]
[Board "33"]

1. e4 {[%clk 0:02:57]}  e5 {[%clk 0:02:57]} 2. Nf3 {[%clk 0:02:57]}  Nc6 {[%clk 0:02:56]} 3. Bc4 {[%clk 0:02:57]}  Bc5 {[%clk 0:02:55]} 4. c3 {[%clk 0:02:58]}  Nf6 {[%clk 0:02:54]} 5. d4 {[%clk 0:02:58]}  exd4 {[%clk 0:02:55]} 6. cxd4 {[%clk 0:02:59]}  Bb4+ {[%clk 0:02:55]} 7. Nc3 {[%clk 0:03:00]}  d5 {[%clk 0:02:47]} 8. exd5 {[%clk 0:02:55]}  Nxd5 {[%clk 0:02:47]} 9. O-O {[%clk 0:02:52]}  Bxc3 {[%clk 0:02:38]} 10. bxc3 {[%clk 0:02:49]}  O-O {[%clk 0:02:39]} 11. Qc2 {[%clk 0:02:29]}  h6 {[%clk 0:02:34]} 12. Re1 {[%clk 0:02:29]}  Be6 {[%clk 0:02:29]} 13. Bxh6 {[%clk 0:02:29]}  Na5 {[%clk 0:01:45]} 14. Ng5 {[%clk 0:02:12]}  Qxg5 {[%clk 0:01:44]} 15. Bxg5 {[%clk 0:02:13]}  Nxc4 {[%clk 0:01:44]} 16. Rxe6 {[%clk 0:02:05]}  fxe6 {[%clk 0:01:38]} 17. Qe2 {[%clk 0:02:05]}  Ndb6 {[%clk 0:01:36]} 18. Qxe6+ {[%clk 0:02:05]}  Kh8 {[%clk 0:01:34]} 19. Re1 {[%clk 0:01:50]}  Nd6 {[%clk 0:01:25]} 20. Re3 {[%clk 0:01:34]}  Rf7 {[%clk 0:01:20]} 21. Rh3+ {[%clk 0:00:46]}  Kg8 {[%clk 0:01:18]} 22. Qg6 {[%clk 0:00:47]}  Rf5 {[%clk 0:01:03]} 23. g4 {[%clk 0:00:35]}  Ra5 {[%clk 0:00:43]} 24. Qe6+ {[%clk 0:00:11]}  Nf7 {[%clk 0:00:40]} 25. Rf3 {[%clk 0:00:12]}  Rf8 {[%clk 0:00:24]} 26. Be7 {[%clk 0:00:12]}  Nd5 {[%clk 0:00:12]} 27. Bxf8 {[%clk 0:00:09]}  Nf6 {[%clk 0:00:12]} 28. Bxg7 {[%clk 0:00:07]}  Ra6 {[%clk 0:00:08]} 29. Qxf6 {[%clk 0:00:05]}  Rxf6 {[%clk 0:00:08]} 30. Bxf6 {[%clk 0:00:06]}  Kh7 {[%clk 0:00:08]} 31. h4 {[%clk 0:00:05]}  b5 {[%clk 0:00:07]} 32. h5 {[%clk 0:00:04]}  a5 {[%clk 0:00:07]} 33. g5 {[%clk 0:00:04]}  Kg8 {[%clk 0:00:06]} 34. g6 {[%clk 0:00:05]}  Nd6 {[%clk 0:00:05]} 35. h6 {[%clk 0:00:04]}  Nf7 {[%clk 0:00:04]} 36. h7+ {[%clk 0:00:05]}  Kf8 {[%clk 0:00:05]} 37. g7+ {[%clk 0:00:05]}  Ke8 {[%clk 0:00:05]} 38. g8=Q+ {[%clk 0:00:05]}  Kd7 {[%clk 0:00:06]} 39. Qxf7+ {[%clk 0:00:06]}  Kc6 {[%clk 0:00:07]} 40. h8=Q {[%clk 0:00:05]}  b4 {[%clk 0:00:07]} 41. Qa8+ {[%clk 0:00:06]}  Kb5 {[%clk 0:00:08]} 42. Qfd5+ {[%clk 0:00:05]}  c5 {[%clk 0:00:08]} 43. Qxc5+ {[%clk 0:00:06]}  Ka4 {[%clk 0:00:09]} 44. Qaxa5# {[%clk 0:00:07]} 1-0


[Site "https://www.chess.com"]

[Event "Titled Tuesday Blitz June 6 Early 2023"]
[White "Fernandez Guillen, Ernesto J."]
[Black "Gabdushev, Ruslan"]
[WhiteFideId "3512428"]
[BlackFideId "4137833"]
[WhiteElo "2434"]
[BlackElo "2233"]
[Result "1-0"]
[Round "8"]
[TimeControl "180+2"]
[Date "2023.06.06"]
[WhiteClock "0:00:13"]
[BlackClock "0:00:01"]
[Board "34"]

1. e4 {[%clk 0:02:53]}  Nc6 {[%clk 0:02:58]} 2. d4 {[%clk 0:02:18]}  d5 {[%clk 0:02:57]} 3. e5 {[%clk 0:02:04]}  Bf5 {[%clk 0:02:56]} 4. c3 {[%clk 0:02:04]}  Qd7 {[%clk 0:02:54]} 5. f4 {[%clk 0:02:03]}  h5 {[%clk 0:02:53]} 6. Nf3 {[%clk 0:02:04]}  h4 {[%clk 0:02:51]} 7. Bd3 {[%clk 0:01:56]}  h3 {[%clk 0:02:48]} 8. g3 {[%clk 0:01:55]}  g6 {[%clk 0:02:38]} 9. O-O {[%clk 0:01:53]}  Nh6 {[%clk 0:02:37]} 10. Be3 {[%clk 0:01:52]}  Bxd3 {[%clk 0:02:34]} 11. Qxd3 {[%clk 0:01:53]}  Qf5 {[%clk 0:02:34]} 12. Qb5 {[%clk 0:01:49]}  O-O-O {[%clk 0:02:33]} 13. Nbd2 {[%clk 0:01:48]}  Ng4 {[%clk 0:02:25]} 14. Bf2 {[%clk 0:01:46]}  f6 {[%clk 0:02:24]} 15. a4 {[%clk 0:01:43]}  g5 {[%clk 0:02:11]} 16. fxg5 {[%clk 0:01:30]}  fxe5 {[%clk 0:02:04]} 17. dxe5 {[%clk 0:01:29]}  Ngxe5 {[%clk 0:01:34]} 18. Nxe5 {[%clk 0:01:22]}  Qxe5 {[%clk 0:01:30]} 19. Rae1 {[%clk 0:01:15]}  Qxg5 {[%clk 0:01:28]} 20. Be3 {[%clk 0:01:15]}  Qg6 {[%clk 0:01:12]} 21. Bf4 {[%clk 0:00:39]}  Bh6 {[%clk 0:01:05]} 22. Bxh6 {[%clk 0:00:38]}  Rxh6 {[%clk 0:01:03]} 23. Nf3 {[%clk 0:00:38]}  a6 {[%clk 0:00:36]} 24. Qe2 {[%clk 0:00:35]}  Qd6 {[%clk 0:00:33]} 25. Ne5 {[%clk 0:00:16]}  Nxe5 {[%clk 0:00:32]} 26. Qxe5 {[%clk 0:00:17]}  Qxe5 {[%clk 0:00:32]} 27. Rxe5 {[%clk 0:00:18]}  e6 {[%clk 0:00:27]} 28. Rfe1 {[%clk 0:00:18]}  Kd7 {[%clk 0:00:26]} 29. Kf2 {[%clk 0:00:16]}  Rf8+ {[%clk 0:00:25]} 30. Ke3 {[%clk 0:00:16]}  Rhf6 {[%clk 0:00:25]} 31. Re2 {[%clk 0:00:16]}  Rf3+ {[%clk 0:00:24]} 32. Kd2 {[%clk 0:00:17]}  R8f6 {[%clk 0:00:22]} 33. Rh5 {[%clk 0:00:17]}  c5 {[%clk 0:00:20]} 34. Rxh3 {[%clk 0:00:17]}  b5 {[%clk 0:00:20]} 35. axb5 {[%clk 0:00:17]}  axb5 {[%clk 0:00:20]} 36. Rh7+ {[%clk 0:00:17]}  Kc6 {[%clk 0:00:20]} 37. g4 {[%clk 0:00:18]}  d4 {[%clk 0:00:14]} 38. cxd4 {[%clk 0:00:18]}  cxd4 {[%clk 0:00:14]} 39. g5 {[%clk 0:00:18]}  Rg6 {[%clk 0:00:13]} 40. h4 {[%clk 0:00:18]}  Kd6 {[%clk 0:00:12]} 41. Rh8 {[%clk 0:00:17]}  Rb3 {[%clk 0:00:10]} 42. Rd8+ {[%clk 0:00:14]}  Ke7 {[%clk 0:00:08]} 43. Rxd4 {[%clk 0:00:14]}  Rxb2+ {[%clk 0:00:08]} 44. Ke3 {[%clk 0:00:14]}  Rb3+ {[%clk 0:00:06]} 45. Kf4 {[%clk 0:00:14]}  Rh3 {[%clk 0:00:05]} 46. Kg4 {[%clk 0:00:14]}  Rh1 {[%clk 0:00:05]} 47. Rg2 {[%clk 0:00:14]}  Rg8 {[%clk 0:00:03]} 48. h5 {[%clk 0:00:14]}  e5 {[%clk 0:00:01]} 49. Rb4 {[%clk 0:00:13]} 1-0


[Site "https://www.chess.com"]

[Event "Titled Tuesday Blitz June 6 Early 2023"]
[White "Elsa167"]
[Black "De La Colina, Nicolas"]
[BlackFideId "30946921"]
[WhiteElo "2898"]
[BlackElo "2046"]
[Result "1-0"]
[Round "8"]
[TimeControl "180+2"]
[Date "2023.06.06"]
[WhiteClock "0:01:51"]
[BlackClock "0:00:49"]
[Board "36"]

1. e4 {[%clk 0:03:00]}  c5 {[%clk 0:02:58]} 2. Nf3 {[%clk 0:03:01]}  Nc6 {[%clk 0:02:57]} 3. Bc4 {[%clk 0:02:59]}  e6 {[%clk 0:02:54]} 4. O-O {[%clk 0:02:59]}  Nf6 {[%clk 0:02:46]} 5. Re1 {[%clk 0:02:59]}  a6 {[%clk 0:02:43]} 6. e5 {[%clk 0:02:56]}  b5 {[%clk 0:02:34]} 7. Bf1 {[%clk 0:02:53]}  Nd5 {[%clk 0:02:32]} 8. Nc3 {[%clk 0:02:49]}  Nxc3 {[%clk 0:02:28]} 9. dxc3 {[%clk 0:02:50]}  d6 {[%clk 0:02:27]} 10. Bg5 {[%clk 0:02:46]}  Qc7 {[%clk 0:02:20]} 11. a4 {[%clk 0:02:37]}  Rb8 {[%clk 0:02:06]} 12. axb5 {[%clk 0:02:36]}  axb5 {[%clk 0:02:07]} 13. Bf4 {[%clk 0:02:31]}  d5 {[%clk 0:01:51]} 14. h4 {[%clk 0:02:26]}  Be7 {[%clk 0:01:49]} 15. h5 {[%clk 0:02:26]}  O-O {[%clk 0:01:42]} 16. h6 {[%clk 0:02:24]}  g6 {[%clk 0:01:39]} 17. Qd2 {[%clk 0:02:25]}  Re8 {[%clk 0:01:30]} 18. Bg5 {[%clk 0:02:24]}  Bf8 {[%clk 0:01:26]} 19. Qf4 {[%clk 0:02:22]}  Bd7 {[%clk 0:01:22]} 20. Nh2 {[%clk 0:02:22]}  Be7 {[%clk 0:01:07]} 21. Ng4 {[%clk 0:02:04]}  Bxg5 {[%clk 0:00:56]} 22. Qxg5 {[%clk 0:02:04]}  Qd8 {[%clk 0:00:57]} 23. Nf6+ {[%clk 0:02:01]}  Kh8 {[%clk 0:00:51]} 24. Qf4 {[%clk 0:01:54]}  Rf8 {[%clk 0:00:49]} 25. Nxd7 {[%clk 0:01:51]} 1-0


[Site "https://www.chess.com"]